[Event "Late-Titled-Tuesday-Blitz-November-28-2023"]
[Site "Chess.com"]
[Date "2023.11.28"]
[Round "6"]
[White "Teidi96"]
[Black "Perecke"]
[Result "0-1"]
[WhiteElo "2285"]
[BlackElo "2503"]
[TimeControl "180+1"]
[EndTime "15:06:08 PST"]
[Termination "Perecke won by resignation"]

1. e4 {[%clk 0:03:00.9]} 1... c5 {[%clk 0:02:59]} 2. Nf3 {[%clk 0:03:01]} 2...
e6 {[%clk 0:02:59]} 3. c3 {[%clk 0:03:00.8]} 3... d5 {[%clk 0:02:56.5]} 4. e5
{[%clk 0:02:58.8]} 4... d4 {[%clk 0:02:56.2]} 5. Bb5+ {[%clk 0:02:55.1]} 5...
Bd7 {[%clk 0:02:54.7]} 6. Bxd7+ {[%clk 0:02:55.7]} 6... Qxd7 {[%clk 0:02:55.6]}
7. O-O {[%clk 0:02:55.7]} 7... Nc6 {[%clk 0:02:53.7]} 8. Re1 {[%clk 0:02:55.2]}
8... d3 {[%clk 0:02:50.4]} 9. b3 {[%clk 0:02:52.2]} 9... Nge7 {[%clk 0:02:48]}
10. Na3 {[%clk 0:02:51.6]} 10... Ng6 {[%clk 0:02:47.6]} 11. Nc4 {[%clk
0:02:45.3]} 11... b5 {[%clk 0:02:46.3]} 12. Nb2 {[%clk 0:02:42.5]} 12... Be7
{[%clk 0:02:18.5]} 13. a4 {[%clk 0:02:40.7]} 13... b4 {[%clk 0:02:07.1]} 14. Nc4
{[%clk 0:02:30.8]} 14... O-O {[%clk 0:02:04.3]} 15. Bb2 {[%clk 0:02:30.4]} 15...
bxc3 {[%clk 0:01:59.3]} 16. dxc3 {[%clk 0:02:26.7]} 16... Nf4 {[%clk 0:02:00.2]}
17. g3 {[%clk 0:02:15.6]} 17... Nh3+ {[%clk 0:01:50.1]} 18. Kg2 {[%clk
0:02:15.3]} 18... Ng5 {[%clk 0:01:50.2]} 19. Nxg5 {[%clk 0:02:11]} 19... Bxg5
{[%clk 0:01:51.1]} 20. f4 {[%clk 0:02:07.8]} 20... Be7 {[%clk 0:01:47.9]} 21.
Re3 {[%clk 0:02:05.4]} 21... Rfd8 {[%clk 0:01:34.2]} 22. Nd6 {[%clk 0:02:03.6]}
22... Bxd6 {[%clk 0:01:34.4]} 23. Rxd3 {[%clk 0:02:04]} 23... Qb7 {[%clk
0:01:35]} 24. Rxd6 {[%clk 0:01:34.2]} 24... Rxd6 {[%clk 0:01:28.9]} 25. Qxd6
{[%clk 0:01:25.7]} 25... Nxe5+ {[%clk 0:01:25.9]} 26. Kh3 {[%clk 0:01:25.6]}
26... Qxb3 {[%clk 0:01:19.9]} 27. Rd1 {[%clk 0:01:05.4]} 27... h6 {[%clk
0:01:19]} 28. fxe5 {[%clk 0:01:05.3]} 28... Qxb2 {[%clk 0:01:16.6]} 29. Qxc5
{[%clk 0:01:02.9]} 29... Qc2 {[%clk 0:01:13.1]} 30. Qd4 {[%clk 0:00:58.7]} 30...
Rb8 {[%clk 0:01:10.6]} 31. Rd2 {[%clk 0:00:41.4]} 31... Qf5+ {[%clk 0:00:42.5]}
32. Kg2 {[%clk 0:00:40.7]} 32... Rb1 {[%clk 0:00:33]} 33. Qd8+ {[%clk
0:00:39.6]} 33... Kh7 {[%clk 0:00:31.5]} 34. Qd3 {[%clk 0:00:40.2]} 34... Kg6
{[%clk 0:00:20.4]} 35. Qxf5+ {[%clk 0:00:35.3]} 35... Kxf5 {[%clk 0:00:21.3]}
36. Rd7 {[%clk 0:00:34.6]} 36... Rb2+ {[%clk 0:00:21.7]} 37. Kh3 {[%clk
0:00:33.3]} 37... g5 {[%clk 0:00:19.5]} 38. Rxf7+ {[%clk 0:00:31.5]} 38... Kxe5
{[%clk 0:00:18.5]} 39. Rxa7 {[%clk 0:00:29.7]} 39... Rc2 {[%clk 0:00:17.8]} 40.
Rh7 {[%clk 0:00:25.2]} 40... Kf5 {[%clk 0:00:17.9]} 41. Rf7+ {[%clk 0:00:22.8]}
41... Kg6 {[%clk 0:00:17.9]} 42. Re7 {[%clk 0:00:21.9]} 42... h5 {[%clk
0:00:15.7]} 43. g4 {[%clk 0:00:16.5]} 43... Rxc3+ {[%clk 0:00:15.9]} 44. Kg2
{[%clk 0:00:16.7]} 44... Kf6 {[%clk 0:00:16.8]} 45. Re8 {[%clk 0:00:12.3]} 45...
hxg4 {[%clk 0:00:17.1]} 46. a5 {[%clk 0:00:12.4]} 46... Ra3 {[%clk 0:00:16.7]}
47. Ra8 {[%clk 0:00:11.9]} 47... Ke5 {[%clk 0:00:14.9]} 48. a6 {[%clk
0:00:10.7]} 48... Kf4 {[%clk 0:00:15.3]} 49. a7 {[%clk 0:00:08.9]} 49... Ra2+
{[%clk 0:00:15.5]} 50. Kg1 {[%clk 0:00:09.5]} 50... Ke5 {[%clk 0:00:11.5]} 51.
Kh1 {[%clk 0:00:05.9]} 51... Ke4 {[%clk 0:00:08.7]} 52. Kg1 {[%clk 0:00:05.1]}
52... e5 {[%clk 0:00:08.4]} 53. Rg8 {[%clk 0:00:02.9]} 53... Rxa7 {[%clk
0:00:07.2]} 54. Rxg5 {[%clk 0:00:03.5]} 54... Kf4 {[%clk 0:00:06.5]} 55. Rg8
{[%clk 0:00:03.4]} 55... e4 {[%clk 0:00:06.3]} 56. Rf8+ {[%clk 0:00:03]} 56...
Ke3 {[%clk 0:00:06.6]} 57. Kg2 {[%clk 0:00:03.4]} 57... Kd2 {[%clk 0:00:04.1]}
58. Rf4 {[%clk 0:00:02]} 58... e3 {[%clk 0:00:04]} 59. Rxg4 {[%clk 0:00:01.9]}
59... e2 {[%clk 0:00:04.4]} 60. Re4 {[%clk 0:00:01.4]} 60... e1=Q {[%clk
0:00:04.5]} 61. Rxe1 {[%clk 0:00:01.5]} 61... Kxe1 {[%clk 0:00:05.4]} 62. Kg3
{[%clk 0:00:02.1]} 62... Ke2 {[%clk 0:00:06.3]} 63. Kg4 {[%clk 0:00:02.2]} 63...
Ke3 {[%clk 0:00:07.2]} 64. Kg5 {[%clk 0:00:01.7]} 64... Ke4 {[%clk 0:00:08.1]}
65. h4 {[%clk 0:00:02.1]} 65... Ke5 {[%clk 0:00:08.3]} 66. h5 {[%clk 0:00:02.7]}
66... Rg7+ {[%clk 0:00:07.9]} 67. Kh6 {[%clk 0:00:03.3]} 67... Rg1 {[%clk
0:00:06.1]} 68. Kh7 {[%clk 0:00:03.9]} 68... Kf6 {[%clk 0:00:07]} 69. h6 {[%clk
0:00:04]} 69... Rh1 {[%clk 0:00:07.5]} 70. Kh8 {[%clk 0:00:03.1]} 70... Rxh6+
{[%clk 0:00:08.4]} 0-1

[Event "Late-Titled-Tuesday-Blitz-November-28-2023"]
[Site "Chess.com"]
[Date "2023.11.28"]
[Round "6"]
[White "ElephantChessGenius"]
[Black "Alimpic"]
[Result "1/2-1/2"]
[WhiteElo "2256"]
[BlackElo "2499"]
[TimeControl "180+1"]
[EndTime "15:06:09 PST"]
[Termination "Game drawn by repetition"]

1. e4 {[%clk 0:03:00.9]} 1... g6 {[%clk 0:02:58.8]} 2. d4 {[%clk 0:02:57.4]}
2... Bg7 {[%clk 0:02:58.8]} 3. Nc3 {[%clk 0:02:57.7]} 3... a6 {[%clk 0:02:59]}
4. Nf3 {[%clk 0:02:54.4]} 4... d6 {[%clk 0:02:57.4]} 5. h3 {[%clk 0:02:53.2]}
5... Nf6 {[%clk 0:02:53.3]} 6. Be3 {[%clk 0:02:52.1]} 6... b5 {[%clk 0:02:47.6]}
7. a3 {[%clk 0:02:46.6]} 7... Bb7 {[%clk 0:02:46.6]} 8. Bd3 {[%clk 0:02:45]}
8... O-O {[%clk 0:02:40.8]} 9. O-O {[%clk 0:02:43.5]} 9... Nbd7 {[%clk
0:02:40.3]} 10. Qe2 {[%clk 0:02:29.1]} 10... Rc8 {[%clk 0:02:37.6]} 11. d5
{[%clk 0:02:28.1]} 11... c6 {[%clk 0:02:30.9]} 12. dxc6 {[%clk 0:02:26.1]} 12...
Bxc6 {[%clk 0:02:31.8]} 13. Rad1 {[%clk 0:02:23.5]} 13... Qc7 {[%clk 0:02:27]}
14. Nd4 {[%clk 0:02:18.6]} 14... Nc5 {[%clk 0:02:15.1]} 15. Nxc6 {[%clk
0:02:12.7]} 15... Qxc6 {[%clk 0:02:16]} 16. Nd5 {[%clk 0:01:57.7]} 16... Rfe8
{[%clk 0:01:54.2]} 17. Nxf6+ {[%clk 0:01:46.3]} 17... Bxf6 {[%clk 0:01:53.7]}
18. Bxc5 {[%clk 0:01:28.8]} 18... Qxc5 {[%clk 0:01:50.1]} 19. c3 {[%clk
0:01:27.2]} 19... Rb8 {[%clk 0:01:44.6]} 20. Bc2 {[%clk 0:01:25.3]} 20... a5
{[%clk 0:01:41.7]} 21. Bb3 {[%clk 0:01:24.2]} 21... b4 {[%clk 0:01:37.5]} 22.
Rd5 {[%clk 0:01:21.3]} 22... Qb6 {[%clk 0:01:35.6]} 23. cxb4 {[%clk 0:01:18.4]}
23... axb4 {[%clk 0:01:36.5]} 24. a4 {[%clk 0:01:18.7]} 24... e6 {[%clk
0:01:33.4]} 25. Rb5 {[%clk 0:01:17.8]} 25... Qd4 {[%clk 0:01:29.8]} 26. Rd1
{[%clk 0:01:06.1]} 26... Qxb2 {[%clk 0:01:26.3]} 27. Qxb2 {[%clk 0:01:03.8]}
27... Bxb2 {[%clk 0:01:27]} 28. Rxd6 {[%clk 0:01:02.9]} 28... Bc3 {[%clk
0:01:13.1]} 29. Rxb8 {[%clk 0:00:48.7]} 29... Rxb8 {[%clk 0:01:14]} 30. a5
{[%clk 0:00:48.9]} 30... Be5 {[%clk 0:01:05]} 31. Rc6 {[%clk 0:00:44.2]} 31...
Kf8 {[%clk 0:01:01.7]} 32. a6 {[%clk 0:00:42.5]} 32... Ke7 {[%clk 0:01:01.1]}
33. Ba4 {[%clk 0:00:33.7]} 33... b3 {[%clk 0:00:53]} 34. a7 {[%clk 0:00:27.8]}
34... Ra8 {[%clk 0:00:50.7]} 35. Bxb3 {[%clk 0:00:27.6]} 35... Rxa7 {[%clk
0:00:50.3]} 36. g3 {[%clk 0:00:25.3]} 36... g5 {[%clk 0:00:47]} 37. Kg2 {[%clk
0:00:24.8]} 37... Kf6 {[%clk 0:00:44.5]} 38. Bc4 {[%clk 0:00:23.3]} 38... Rb7
{[%clk 0:00:38.7]} 39. Bd3 {[%clk 0:00:18.3]} 39... Rb3 {[%clk 0:00:36]} 40. Bc2
{[%clk 0:00:17.8]} 40... Rb2 {[%clk 0:00:35.9]} 41. Rc4 {[%clk 0:00:18]} 41...
h5 {[%clk 0:00:35.8]} 42. Rc8 {[%clk 0:00:17.5]} 42... h4 {[%clk 0:00:34.9]} 43.
g4 {[%clk 0:00:15.4]} 43... Bd4 {[%clk 0:00:32.1]} 44. Rc4 {[%clk 0:00:13.8]}
44... Ke5 {[%clk 0:00:30.6]} 45. Kf3 {[%clk 0:00:11.2]} 45... Bb6 {[%clk
0:00:29.1]} 46. Rc8 {[%clk 0:00:08.9]} 46... Ra2 {[%clk 0:00:26.3]} 47. Rc3
{[%clk 0:00:06.7]} 47... Bd4 {[%clk 0:00:24.9]} 48. Rc7 {[%clk 0:00:05.5]} 48...
Ra3+ {[%clk 0:00:24.9]} 49. Kg2 {[%clk 0:00:05.8]} 49... f6 {[%clk 0:00:23.3]}
50. Rc6 {[%clk 0:00:04.1]} 50... Ba7 {[%clk 0:00:11.8]} 51. Rc7 {[%clk
0:00:04.2]} 51... Bb6 {[%clk 0:00:11.1]} 52. Rc6 {[%clk 0:00:04.3]} 52... Ba7
{[%clk 0:00:11.3]} 53. Rc7 {[%clk 0:00:04.7]} 53... Ra2 {[%clk 0:00:11.4]} 54.
Rc6 {[%clk 0:00:04.1]} 54... Rb2 {[%clk 0:00:09.2]} 55. Rc7 {[%clk 0:00:03.9]}
55... Bd4 {[%clk 0:00:09]} 56. Rc6 {[%clk 0:00:04]} 56... Bb6 {[%clk 0:00:08.8]}
57. Rc8 {[%clk 0:00:03.5]} 57... Kf4 {[%clk 0:00:08.9]} 58. Rc4 {[%clk
0:00:03.3]} 58... e5 {[%clk 0:00:06.3]} 59. Rc6 {[%clk 0:00:01.8]} 59... Bd8
{[%clk 0:00:06]} 60. Rc8 {[%clk 0:00:02.3]} 60... Be7 {[%clk 0:00:05.3]} 61. Rc6
{[%clk 0:00:02.9]} 61... Bd8 {[%clk 0:00:04.8]} 62. Rc4 {[%clk 0:00:03.5]} 62...
Be7 {[%clk 0:00:05]} 63. Rc7 {[%clk 0:00:03.7]} 63... Bd8 {[%clk 0:00:05.3]} 64.
Rc8 {[%clk 0:00:03.7]} 64... Be7 {[%clk 0:00:05]} 65. Rc6 {[%clk 0:00:04]} 65...
Bd8 {[%clk 0:00:03.3]} 1/2-1/2

[Event "Late-Titled-Tuesday-Blitz-November-28-2023"]
[Site "Chess.com"]
[Date "2023.11.28"]
[Round "6"]
[White "Mikasinski"]
[Black "TigrVShlyape"]
[Result "0-1"]
[WhiteElo "2710"]
[BlackElo "2970"]
[TimeControl "180+1"]
[EndTime "15:06:10 PST"]
[Termination "TigrVShlyape won by resignation"]

1. Nf3 {[%clk 0:03:00.9]} 1... Nf6 {[%clk 0:02:57.8]} 2. d4 {[%clk 0:03:00.7]}
2... d5 {[%clk 0:02:55.7]} 3. c4 {[%clk 0:02:59.7]} 3... c6 {[%clk 0:02:52.2]}
4. g3 {[%clk 0:02:59.6]} 4... g6 {[%clk 0:02:50.3]} 5. Bg2 {[%clk 0:03:00]} 5...
Bg7 {[%clk 0:02:49.7]} 6. O-O {[%clk 0:03:00.4]} 6... O-O {[%clk 0:02:49.1]} 7.
b3 {[%clk 0:02:56.9]} 7... Bg4 {[%clk 0:02:42]} 8. Bb2 {[%clk 0:02:53.8]} 8...
Qc8 {[%clk 0:02:37]} 9. Re1 {[%clk 0:02:51.8]} 9... Bh3 {[%clk 0:02:35.2]} 10.
Bh1 {[%clk 0:02:49.9]} 10... h6 {[%clk 0:02:34.8]} 11. Nc3 {[%clk 0:02:45]}
11... e6 {[%clk 0:02:34]} 12. e4 {[%clk 0:02:39]} 12... dxe4 {[%clk 0:02:30.3]}
13. Nxe4 {[%clk 0:02:39.3]} 13... Nxe4 {[%clk 0:02:30.2]} 14. Rxe4 {[%clk
0:02:39.6]} 14... Bf5 {[%clk 0:02:15.2]} 15. Re1 {[%clk 0:02:38.8]} 15... Bg4
{[%clk 0:02:14.5]} 16. Qd3 {[%clk 0:02:37.4]} 16... Bxf3 {[%clk 0:02:14]} 17.
Bxf3 {[%clk 0:02:35.9]} 17... Nd7 {[%clk 0:02:12.3]} 18. Rad1 {[%clk 0:02:33]}
18... Nb6 {[%clk 0:02:10.4]} 19. Qc2 {[%clk 0:02:28.5]} 19... Rd8 {[%clk
0:02:09.8]} 20. h4 {[%clk 0:02:28.3]} 20... Rd7 {[%clk 0:02:03.7]} 21. Rd2
{[%clk 0:02:25.4]} 21... Qf8 {[%clk 0:02:01]} 22. h5 {[%clk 0:02:22.6]} 22... g5
{[%clk 0:02:00.5]} 23. Red1 {[%clk 0:01:59.8]} 23... Rad8 {[%clk 0:01:53.4]} 24.
c5 {[%clk 0:01:50.8]} 24... Nd5 {[%clk 0:01:51.5]} 25. Qc4 {[%clk 0:01:45.2]}
25... a6 {[%clk 0:01:45.4]} 26. b4 {[%clk 0:01:42.7]} 26... Ne7 {[%clk
0:01:41.2]} 27. Be4 {[%clk 0:01:40.2]} 27... Bf6 {[%clk 0:01:34.7]} 28. Bb1
{[%clk 0:01:39.3]} 28... Qg7 {[%clk 0:01:34]} 29. a4 {[%clk 0:01:30.8]} 29... g4
{[%clk 0:01:30.7]} 30. b5 {[%clk 0:01:15.5]} 30... axb5 {[%clk 0:01:30.2]} 31.
axb5 {[%clk 0:01:16]} 31... Qg5 {[%clk 0:01:30.4]} 32. bxc6 {[%clk 0:00:57.5]}
32... bxc6 {[%clk 0:01:29.5]} 33. Kg2 {[%clk 0:00:45.4]} 33... Qxh5 {[%clk
0:01:23.2]} 34. Be4 {[%clk 0:00:42.4]} 34... Qg5 {[%clk 0:01:13.7]} 35. Qa6
{[%clk 0:00:39]} 35... Rc8 {[%clk 0:01:01.4]} 36. Qa4 {[%clk 0:00:22.7]} 36...
h5 {[%clk 0:00:59.2]} 37. Qc4 {[%clk 0:00:21.1]} 37... Rcd8 {[%clk 0:00:56.1]}
38. Qa6 {[%clk 0:00:20.2]} 38... Rc8 {[%clk 0:00:46.8]} 39. Qc4 {[%clk 0:00:20]}
39... Nd5 {[%clk 0:00:42.4]} 40. Qa6 {[%clk 0:00:15.8]} 40... Rdd8 {[%clk
0:00:37.7]} 41. Qc4 {[%clk 0:00:15.3]} 41... h4 {[%clk 0:00:34]} 42. gxh4 {[%clk
0:00:15.3]} 42... Nf4+ {[%clk 0:00:33.6]} 43. Kf1 {[%clk 0:00:15.7]} 43... Qxh4
{[%clk 0:00:32.9]} 44. Qb3 {[%clk 0:00:15.6]} 44... Qh3+ {[%clk 0:00:31.7]} 45.
Qxh3 {[%clk 0:00:15.6]} 45... Nxh3 {[%clk 0:00:30.8]} 46. Kg2 {[%clk 0:00:11.7]}
46... Ng5 {[%clk 0:00:30.1]} 47. Bd3 {[%clk 0:00:09.4]} 47... Nf3 {[%clk
0:00:28.5]} 48. Re2 {[%clk 0:00:05.8]} 48... Bxd4 {[%clk 0:00:28.5]} 49. Ba6
{[%clk 0:00:01.6]} 49... Rb8 {[%clk 0:00:27.3]} 50. Bxd4 {[%clk 0:00:01]} 50...
Rxd4 {[%clk 0:00:16.3]} 51. Rxd4 {[%clk 0:00:01.4]} 51... Nxd4 {[%clk
0:00:16.1]} 52. Re4 {[%clk 0:00:02.2]} 52... Nb3 {[%clk 0:00:12.6]} 53. Rxg4+
{[%clk 0:00:02.9]} 53... Kf8 {[%clk 0:00:12.5]} 54. Rc4 {[%clk 0:00:01.7]} 54...
Ra8 {[%clk 0:00:11.6]} 55. Rc3 {[%clk 0:00:02.3]} 55... Rxa6 {[%clk 0:00:11.1]}
56. Rxb3 {[%clk 0:00:02.6]} 56... Ra5 {[%clk 0:00:11.6]} 57. Rc3 {[%clk
0:00:03.2]} 57... Rb5 {[%clk 0:00:11.7]} 58. Kf3 {[%clk 0:00:03.6]} 58... Ke7
{[%clk 0:00:12.1]} 59. Ke4 {[%clk 0:00:04.3]} 59... Rb4+ {[%clk 0:00:12.5]} 60.
Ke3 {[%clk 0:00:04]} 60... Kf6 {[%clk 0:00:12.9]} 61. Kf3 {[%clk 0:00:03.6]}
61... Ke5 {[%clk 0:00:13]} 62. Re3+ {[%clk 0:00:02.3]} 62... Kd5 {[%clk
0:00:13.4]} 63. Rd3+ {[%clk 0:00:02.8]} 63... Rd4 {[%clk 0:00:13.7]} 64. Rc3
{[%clk 0:00:02.8]} 64... e5 {[%clk 0:00:13.8]} 65. Ke3 {[%clk 0:00:01.9]} 65...
f5 {[%clk 0:00:14.1]} 66. f3 {[%clk 0:00:02]} 66... Rc4 {[%clk 0:00:13.3]} 67.
Rd3+ {[%clk 0:00:02.1]} 67... Kxc5 {[%clk 0:00:13.7]} 68. Rd8 {[%clk 0:00:02.8]}
68... Rd4 {[%clk 0:00:13.5]} 69. Re8 {[%clk 0:00:02.6]} 69... f4+ {[%clk
0:00:13.7]} 70. Ke2 {[%clk 0:00:02.8]} 70... Kd5 {[%clk 0:00:13.7]} 71. Rd8+
{[%clk 0:00:02]} 71... Kc4 {[%clk 0:00:14]} 72. Re8 {[%clk 0:00:02.2]} 72... Rd5
{[%clk 0:00:14.3]} 73. Kf2 {[%clk 0:00:01.6]} 73... c5 {[%clk 0:00:13.7]} 74.
Kg2 {[%clk 0:00:02]} 74... Kd3 {[%clk 0:00:13.9]} 75. Kh3 {[%clk 0:00:01.9]}
75... c4 {[%clk 0:00:14]} 76. Kg4 {[%clk 0:00:02.6]} 76... c3 {[%clk 0:00:14.4]}
77. Rd8 {[%clk 0:00:03.3]} 77... Rxd8 {[%clk 0:00:13.3]} 0-1

[Event "Late-Titled-Tuesday-Blitz-November-28-2023"]
[Site "Chess.com"]
[Date "2023.11.28"]
[Round "6"]
[White "DanylaBagrov"]
[Black "Aleksandar-Topalov"]
[Result "1-0"]
[WhiteElo "2597"]
[BlackElo "2406"]
[TimeControl "180+1"]
[EndTime "15:06:10 PST"]
[Termination "DanylaBagrov won by resignation"]

1. d4 {[%clk 0:03:00.9]} 1... Nf6 {[%clk 0:02:59.5]} 2. c4 {[%clk 0:02:57.7]}
2... c5 {[%clk 0:02:59.5]} 3. d5 {[%clk 0:02:57.9]} 3... d6 {[%clk 0:03:00]} 4.
Bf4 {[%clk 0:02:56.9]} 4... g6 {[%clk 0:02:59.5]} 5. Nc3 {[%clk 0:02:55.8]} 5...
Bg7 {[%clk 0:02:59.7]} 6. h3 {[%clk 0:02:54]} 6... O-O {[%clk 0:02:59.6]} 7. Nf3
{[%clk 0:02:52.7]} 7... Na6 {[%clk 0:02:57.4]} 8. e3 {[%clk 0:02:52.8]} 8... Nc7
{[%clk 0:02:57.2]} 9. Be2 {[%clk 0:02:49.3]} 9... Rb8 {[%clk 0:02:57.3]} 10. a4
{[%clk 0:02:45.8]} 10... b6 {[%clk 0:02:57]} 11. Nb5 {[%clk 0:02:37.3]} 11... a6
{[%clk 0:02:53.2]} 12. Nc3 {[%clk 0:02:23.2]} 12... Bd7 {[%clk 0:02:52.3]} 13.
O-O {[%clk 0:02:14.7]} 13... b5 {[%clk 0:02:52.5]} 14. axb5 {[%clk 0:02:15.4]}
14... axb5 {[%clk 0:02:52.8]} 15. Nd2 {[%clk 0:01:40.5]} 15... b4 {[%clk
0:02:38.2]} 16. Na4 {[%clk 0:01:37.1]} 16... Bxa4 {[%clk 0:02:37.5]} 17. Rxa4
{[%clk 0:01:34]} 17... Nh5 {[%clk 0:02:37.7]} 18. Bxh5 {[%clk 0:01:27.5]} 18...
gxh5 {[%clk 0:02:37.8]} 19. b3 {[%clk 0:01:22.6]} 19... e6 {[%clk 0:02:27.8]}
20. dxe6 {[%clk 0:01:16]} 20... Nxe6 {[%clk 0:02:27.3]} 21. Bh2 {[%clk
0:01:11.8]} 21... h4 {[%clk 0:02:19.2]} 22. Ne4 {[%clk 0:01:08.5]} 22... Rb6
{[%clk 0:02:14]} 23. Bxd6 {[%clk 0:01:04.4]} 23... Rxd6 {[%clk 0:02:05.5]} 24.
Qxd6 {[%clk 0:01:03.4]} 24... Qc8 {[%clk 0:02:03.1]} 25. Qe7 {[%clk 0:00:55.4]}
25... Re8 {[%clk 0:01:59.1]} 26. Nd6 {[%clk 0:00:47.9]} 26... Rxe7 {[%clk
0:01:55.3]} 27. Nxc8 {[%clk 0:00:48.4]} 27... Re8 {[%clk 0:01:53.1]} 28. Nd6
{[%clk 0:00:48.2]} 28... Rd8 {[%clk 0:01:53.1]} 29. Ne4 {[%clk 0:00:40.6]} 29...
Rd3 {[%clk 0:01:47.4]} 30. Ra8+ {[%clk 0:00:27.6]} 30... Bf8 {[%clk 0:01:47.5]}
31. Rb1 {[%clk 0:00:28.3]} 31... Kg7 {[%clk 0:01:44.8]} 32. Kf1 {[%clk
0:00:22.8]} 32... f5 {[%clk 0:01:43.3]} 33. Ra6 {[%clk 0:00:19.7]} 33... Kf7
{[%clk 0:01:34.4]} 34. Rxe6 {[%clk 0:00:16.1]} 34... Kxe6 {[%clk 0:01:32.8]} 35.
Ng5+ {[%clk 0:00:16.8]} 35... Ke5 {[%clk 0:01:23.1]} 36. Nf3+ {[%clk 0:00:16.1]}
36... Kf6 {[%clk 0:01:15]} 37. Ke2 {[%clk 0:00:13.2]} 37... Rc3 {[%clk 0:01:14]}
38. Kd2 {[%clk 0:00:09.7]} 38... Bh6 {[%clk 0:01:10.1]} 39. Nxh4 {[%clk
0:00:07.5]} 39... f4 {[%clk 0:01:08.7]} 40. exf4 {[%clk 0:00:05.1]} 40... Bxf4+
{[%clk 0:01:08.3]} 41. Ke2 {[%clk 0:00:05.7]} 41... Rc2+ {[%clk 0:01:06.3]} 42.
Kf3 {[%clk 0:00:06]} 42... Bg5 {[%clk 0:01:06.6]} 43. Kg4 {[%clk 0:00:04.8]}
43... Rxf2 {[%clk 0:01:03.3]} 44. g3 {[%clk 0:00:05.6]} 44... Rd2 {[%clk
0:01:00.1]} 45. Nf3 {[%clk 0:00:05.5]} 45... Rd3 {[%clk 0:00:41.8]} 46. Nxg5
{[%clk 0:00:05.9]} 46... Rd4+ {[%clk 0:00:42.3]} 47. Kh5 {[%clk 0:00:05.8]}
47... Rd3 {[%clk 0:00:37.3]} 48. Rf1+ {[%clk 0:00:06.3]} 48... Kg7 {[%clk
0:00:36.5]} 49. Rf3 {[%clk 0:00:06.7]} 49... Rc3 {[%clk 0:00:35]} 50. Kg4 {[%clk
0:00:06.7]} 50... h6 {[%clk 0:00:35.2]} 51. Ne6+ {[%clk 0:00:07.2]} 51... Kg6
{[%clk 0:00:34.9]} 52. Nxc5 {[%clk 0:00:07.9]} 52... Rc1 {[%clk 0:00:32]} 53.
Nd3 {[%clk 0:00:07]} 53... Rb1 {[%clk 0:00:31.2]} 54. Nxb4 {[%clk 0:00:07.2]}
54... Re1 {[%clk 0:00:27.4]} 55. Rd3 {[%clk 0:00:07.2]} 55... h5+ {[%clk
0:00:27.4]} 56. Kf3 {[%clk 0:00:07.7]} 56... Rf1+ {[%clk 0:00:24.4]} 57. Kg2
{[%clk 0:00:07.7]} 57... Rb1 {[%clk 0:00:24.3]} 58. Nd5 {[%clk 0:00:08.2]} 58...
Kf5 {[%clk 0:00:23.4]} 59. c5 {[%clk 0:00:06.6]} 59... Ke4 {[%clk 0:00:22.4]}
60. Nf4 {[%clk 0:00:07.2]} 60... h4 {[%clk 0:00:21.5]} 61. Rd2 {[%clk
0:00:06.4]} 61... hxg3 {[%clk 0:00:20.3]} 62. Kxg3 {[%clk 0:00:06.7]} 62...
Rxb3+ {[%clk 0:00:20.6]} 63. Kg4 {[%clk 0:00:06.3]} 63... Rb1 {[%clk 0:00:19.9]}
64. Re2+ {[%clk 0:00:06.9]} 64... Kd4 {[%clk 0:00:18.5]} 65. c6 {[%clk
0:00:07.3]} 65... Rc1 {[%clk 0:00:18.6]} 66. Re6 {[%clk 0:00:07.3]} 66... Rg1+
{[%clk 0:00:16]} 67. Kf5 {[%clk 0:00:07.4]} 67... Rc1 {[%clk 0:00:14.8]} 68. h4
{[%clk 0:00:07.4]} 68... Rc5+ {[%clk 0:00:12.9]} 69. Kg4 {[%clk 0:00:07]} 69...
Rc1 {[%clk 0:00:10.2]} 70. h5 {[%clk 0:00:07.4]} 70... Rg1+ {[%clk 0:00:10.3]}
71. Kf5 {[%clk 0:00:07.5]} 71... Rh1 {[%clk 0:00:09.8]} 72. h6 {[%clk 0:00:08]}
72... Rxh6 {[%clk 0:00:07.9]} 73. Rxh6 {[%clk 0:00:07.1]} 1-0